bitfinex-derivatives/quotes_ETHF0:USTF0_20251210
["timestamp","ask_amount","ask_price","bid_price","bid_amount"]
[1765337204873,0.76444094,3307.6,3307.5,2.31228054]
[1765337205073,0.10336992,3307.6,3307.5,2.31228054]
[1765337205269,0.83306992,3307.6,3307.5,2.31228054]
[1765337205472,1.49414094,3307.6,3307.5,2.31228054]
[1765337205676,2.22024094,3307.6,3307.5,2.31228054]
[1765337206078,2.22024094,3307.6,3307.5,1.418]
[1765337207882,1.49414094,3307.6,3307.5,1.418]
[1765337208082,1.49402432,3307.6,3307.5,1.418]
[1765337208381,1.49402432,3307.6,3307.5,2.31228054]
[1765337209984,0.10336992,3307.6,3307.5,2.31228054]
[1765337210191,0.10336992,3307.6,3307.5,2.73378054]
[1765337214482,0.79936992,3307.6,3307.5,2.73378054]
[1765337214687,0.10336992,3307.6,3307.5,2.73378054]
[1765337215990,8.62880028,3308.9,3308.8,0.6938]
[1765337216182,1.8106,3308.5,3308.4,2.27268054]
[1765337216383,2.4710618,3308.5,3308.4,0.6938]
[1765337217086,2.47466744,3308.5,3308.4,0.6938]
[1765337217481,1.80046744,3308.5,3308.4,1.3784]
[1765337217684,0.00360564,3308.5,3308.4,3.16696108]
[1765337217884,0.696,3309.2,3309.1,1.3784]
[1765337218184,0.696,3309.2,3309.1,2.27268054]
[1765337218784,0.69903853,3309.2,3309.1,2.27501917]
[1765337219294,0.00303853,3309.2,3309.1,2.27501917]
[1765337219983,0.2952,3309.3,3309.1,2.27501917]
[1765337220186,0.14927995,3309.3,3309.2,5.48048054]
[1765337220586,0.14927995,3309.3,3309.2,4.5862]
[1765337220789,0.14927995,3309.3,3309.2,5.48048054]
[1765337221181,0.15179407,3309.3,3309.2,6.37476108]
[1765337221580,0.15179407,3309.3,3309.2,5.48048054]
[1765337223491,0.13819375,3309.3,3309.2,5.63156054]
[1765337223690,5.0184,3310.5,3310.4,0.6938]
[1765337223890,0.696,3310.2,3310.1,2.27268054]
[1765337224097,1.3702,3310.2,3310.1,2.27268054]
[1765337224695,1.37328746,3310.2,3310.1,2.27268054]
[1765337224895,1.37328746,3310.2,3310.1,0.6938]
[1765337225391,1.37328746,3310.2,3309.8,3.21233193]
[1765337225392,1.3702,3309.9,3309.8,3.21233193]
[1765337225598,2.26448054,3309.9,3309.8,3.21233193]
[1765337227703,1.3702,3309.9,3309.8,3.21233193]
[1765337227906,1.3702,3309.9,3309.8,4.59073193]
[1765337228104,1.1364,3310.0,3309.9,1.3784]
[1765337228310,0.696,3310.0,3309.9,2.27268054]
[1765337228601,0.69908746,3310.2,3310.1,1.3784]
[1765337228807,0.69908746,3310.2,3310.1,2.27268054]
[1765337230005,1.37328746,3310.2,3310.1,2.27268054]
[1765337231305,0.00308746,3310.2,3310.1,2.27268054]
[1765337232208,1.44598746,3310.2,3310.1,1.3784]
[1765337232510,1.44598746,3310.2,3310.1,0.6938]
[1765337232906,1.44598746,3310.2,3310.1,1.416]
[1765337233113,1.44598746,3310.2,3310.1,0.6938]
[1765337233303,1.44598746,3310.2,3310.1,1.416]
[1765337235908,0.73348746,3310.2,3310.1,1.416]
[1765337236313,1.44598746,3310.2,3310.1,1.416]
[1765337236800,0.73348746,3310.2,3310.1,1.416]
[1765337237406,1.44598746,3310.2,3310.1,1.416]
[1765337239913,0.00308746,3310.2,3310.1,1.416]
[1765337243003,0.00453193,3310.5,3310.4,1.4194]
[1765337243208,0.00453193,3310.5,3310.4,5.54777614]
[1765337243918,1.411,3311.4,3311.3,1.4309]
[1765337244113,0.73334863,3311.4,3311.3,1.4309]
[1765337245206,1.41434863,3311.4,3311.3,0.7322]
[1765337245409,1.411,3311.1,3311.0,4.6387]
[1765337245609,1.411,3311.1,3311.0,3.2078]
[1765337246416,1.411,3311.1,3311.0,3.94]
[1765337247211,1.411,3311.1,3311.0,4.6387]
[1765337249010,1.41434863,3311.4,3311.3,1.4309]
[1765337249210,2.07036785,3311.4,3311.3,1.4309]
[1765337249411,1.411,3311.1,3311.0,4.6387]
[1765337249613,1.411,3311.1,3311.0,3.94]
[1765337250517,1.411,3311.1,3311.0,4.6387]
[1765337250720,1.411,3311.1,3311.0,3.2078]
[1765337250910,1.411,3311.1,3311.0,3.94]
[1765337251515,1.411,3311.1,3311.0,3.2078]
[1765337252016,1.411,3311.1,3311.0,3.94]
[1765337252629,1.411,3311.1,3311.0,4.6387]
[1765337254309,0.73,3311.1,3311.0,4.6387]
[1765337254513,1.38941274,3311.4,3311.3,1.4309]
[1765337254713,2.07041274,3311.4,3311.3,1.4309]
[1765337255313,2.07041274,3311.4,3311.3,0.7322]
[1765337255718,2.07041274,3311.4,3311.3,1.4309]
[1765337255921,2.07041274,3311.4,3311.3,0.7322]
[1765337256122,1.38941274,3311.4,3311.3,1.4309]
[1765337256419,2.07041274,3311.4,3311.3,0.7322]
[1765337256620,0.73,3311.1,3311.0,4.6387]
[1765337257315,1.411,3311.1,3311.0,3.94]
[1765337257520,1.411,3311.1,3311.0,4.6387]
[1765337257920,1.41434863,3311.4,3311.3,0.7322]
[1765337258217,0.65908832,3311.4,3311.3,1.4309]
[1765337258423,0.00334863,3311.4,3311.3,1.4309]
[1765337259724,0.73334863,3311.4,3311.3,1.4309]
[1765337261019,0.00334863,3311.4,3311.3,1.4309]
[1765337261622,0.73,3311.1,3311.0,4.6387]
[1765337262722,1.411,3311.1,3311.0,4.6387]
[1765337262924,0.73,3311.1,3311.0,4.6387]
[1765337263123,2.07062505,3311.4,3311.3,1.4309]
[1765337263517,1.411,3311.1,3311.0,3.94]
[1765337263722,1.411,3311.1,3311.0,4.6387]
[1765337266327,1.411,3311.1,3311.0,3.94]
[1765337266931,1.411,3311.1,3311.0,4.6387]
[1765337267830,1.411,3311.1,3311.0,3.94]
[1765337268027,1.411,3311.1,3311.0,3.2078]
[1765337268531,2.06808005,3311.1,3311.0,3.2078]
[1765337268922,2.06808005,3311.1,3311.0,3.94]
[1765337270226,1.411,3310.7,3310.6,3.2078]
[1765337270433,2.98865619,3310.7,3310.6,3.2078]
[1765337271025,1.411,3310.3,3310.2,3.94]
[1765337271432,2.06886168,3310.3,3310.2,3.94]
[1765337272335,1.411,3310.3,3310.2,4.6387]
[1765337272735,1.411,3310.3,3310.2,3.94]
[1765337273532,1.411,3310.3,3310.2,4.6387]
[1765337273929,1.411,3310.3,3310.2,3.94]
[1765337274337,1.411,3310.3,3310.2,4.6419]
[1765337274832,1.411,3310.3,3310.2,3.94]
[1765337275529,1.411,3310.3,3310.2,4.6419]
[1765337277442,1.411,3310.3,3310.2,3.94]
[1765337279429,1.411,3310.3,3310.2,4.6419]
[1765337281045,2.33157614,3310.3,3310.2,3.94]
[1765337281342,1.411,3310.3,3310.2,3.94]
[1765337282137,1.411,3310.3,3310.2,4.6419]
[1765337282440,1.1183,3310.5,3310.4,1.4174]
[1765337282641,2.31117614,3310.9,3310.8,1.4174]
[1765337282842,3.20040967,3310.9,3310.8,1.4174]
[1765337283038,3.20040967,3310.9,3310.2,3.2078]
[1765337283242,0.88923353,3310.8,3310.2,3.2078]
[1765337287146,2.27983353,3310.8,3310.7,0.7155]
[1765337288337,1.3906,3310.3,3310.2,3.9233]
[1765337288542,1.3906,3310.3,3310.2,4.6252]
[1765337288848,1.3906,3310.3,3310.2,3.9233]
[1765337289851,1.3906,3309.9,3309.8,4.62973193]
[1765337290142,2.31117614,3309.9,3309.8,4.62973193]
[1765337290351,1.3906,3309.9,3309.8,4.62973193]
[1765337290549,0.6969,3309.9,3309.8,4.62973193]
[1765337290744,0.92057614,3310.2,3309.9,0.6827]
[1765337290942,1.65937614,3310.2,3310.1,1.3971]
[1765337291137,2.99998275,3310.2,3310.1,1.3971]
[1765337294850,2.97225253,3310.2,3310.1,1.3971]
[1765337296044,1.55125253,3310.2,3310.1,1.3971]
[1765337296244,1.55125253,3310.2,3310.1,2.28994592]
[1765337296245,0.65840661,3310.2,3310.1,2.28994592]
[1765337296449,0.65840661,3310.5,3310.4,1.3971]
[1765337298454,0.65840661,3310.7,3310.6,1.3971]
[1765337298752,0.89136287,3310.9,3310.8,1.3971]
[1765337298952,1.78420879,3310.9,3310.8,1.3971]
[1765337299352,2.52300879,3310.9,3310.8,1.3971]
[1765337299755,0.89136287,3310.9,3310.8,1.3971]
[1765337299952,2.07940661,3310.9,3310.8,1.3971]
[1765337300258,2.07940661,3310.9,3310.7,3.2078]
[1765337300259,1.421,3310.8,3310.7,3.9222]
[1765337300462,2.97225253,3310.8,3310.7,3.9222]
[1765337300757,2.97225253,3310.8,3310.7,4.6049]
[1765337301858,3.20538047,3310.8,3310.7,3.9222]
[1765337303161,4.09822639,3310.8,3310.7,3.2078]
[1765337303460,3.20538047,3310.8,3310.7,3.2078]
[1765337304761,1.4539,3310.2,3310.1,4.6577]
[1765337304967,3.00515253,3310.2,3310.1,3.2078]
[1765337305254,1.4403,3309.9,3309.8,0.72923193]
[1765337305462,2.99155253,3309.9,3309.8,0.72923193]
[1765337306149,2.99155253,3309.9,3309.8,1.46473193]
[1765337307152,2.99155253,3309.9,3309.8,0.00453193]
[1765337307756,2.09870661,3309.9,3309.8,1.46473193]
[1765337308047,2.99155253,3309.9,3309.8,1.46473193]
[1765337308253,1.55125253,3309.9,3309.8,1.46473193]
[1765337308453,2.27645253,3309.9,3309.8,1.46473193]
[1765337308658,1.55125253,3309.9,3309.8,1.46473193]
[1765337308859,0.65840661,3309.9,3309.8,1.46473193]
[1765337309164,1.38360661,3310.0,3309.9,1.4602]
[1765337309356,2.09870661,3310.0,3309.9,1.4602]
[1765337310063,1.38360661,3310.0,3309.9,1.4602]
[1765337310665,2.09870661,3310.0,3309.9,1.4602]
[1765337314058,1.38360661,3310.0,3309.9,1.4602]
[1765337316561,0.65840661,3310.0,3309.9,1.4602]
[1765337317962,1.38360661,3310.2,3310.1,1.4602]
[1765337320468,1.38360661,3310.2,3310.1,4.668]
[1765337321466,0.65840661,3310.2,3310.1,4.668]
[1765337321966,1.61804592,3310.5,3310.4,1.4602]
[1765337322154,2.27687274,3310.5,3310.4,1.4602]
[1765337322355,2.99197274,3310.5,3310.4,1.4602]
[1765337322770,3.40957274,3310.5,3310.4,1.4602]
[1765337323367,4.53547008,3310.5,3310.1,3.2078]
[1765337323565,2.33314592,3310.2,3310.1,3.2078]
[1765337323765,2.99197274,3310.2,3310.1,3.9325]
[1765337324265,2.99197274,3310.2,3310.1,4.668]
[1765337325368,0.65882682,3310.2,3310.1,4.668]
[1765337325564,1.8579,3310.5,3310.4,1.4602]
[1765337325867,2.51671435,3310.5,3310.4,1.4602]
[1765337326665,3.40956027,3310.5,3310.4,1.4602]
[1765337327970,3.40956027,3310.5,3310.4,0.7247]
[1765337330368,1.4403,3310.2,3310.1,4.668]
[1765337330570,2.33314592,3310.2,3310.1,4.668]
[1765337330769,2.99196027,3310.2,3310.1,4.668]
[1765337331477,2.99196027,3310.2,3310.1,3.9325]
[1765337331971,1.55166027,3310.2,3310.1,4.668]
[1765337332874,0.65881435,3310.2,3310.1,4.668]
[1765337333072,0.65881435,3310.3,3310.2,1.4602]
[1765337335471,1.38401435,3310.3,3310.2,1.4602]
[1765337336278,2.05671435,3310.3,3310.2,1.4602]
[1765337339782,2.05671435,3310.3,3310.2,0.7247]
[1765337340983,2.05671435,3310.3,3310.2,1.3985]
[1765337341171,2.05671435,3310.3,3310.1,3.2078]
[1765337341376,2.91676027,3310.2,3310.1,3.2078]
[1765337343677,2.91676027,3310.2,3310.1,4.5795]
[1765337343873,2.24406027,3310.2,3310.1,4.5795]
[1765337344382,2.91676027,3310.2,3310.1,4.5795]
[1765337346280,2.91676027,3310.2,3310.1,3.9057]
[1765337346480,2.91676027,3310.2,3310.1,3.2078]
[1765337347191,1.3651,3309.9,3309.8,1.37623193]
[1765337347488,2.91676027,3309.9,3309.8,1.37623193]
[1765337349580,2.91676027,3309.9,3309.8,0.70243193]
[1765337350482,2.91676027,3309.9,3309.8,1.41363193]
[1765337351784,1.55166027,3309.9,3309.8,1.41363193]
[1765337352184,0.65881435,3309.9,3309.8,1.41363193]
[1765337352387,0.65881435,3310.0,3309.9,1.4102]
[1765337352886,1.38811435,3310.0,3309.9,1.4102]
[1765337353789,0.65881435,3310.0,3309.9,1.4102]
[1765337356296,2.09161435,3310.0,3309.9,1.4102]
[1765337356593,2.51991435,3310.0,3309.9,0.699]
[1765337356793,3.44077357,3310.0,3309.9,0.699]
[1765337356995,3.44077357,3310.0,3309.9,1.4102]
[1765337357395,1.57967357,3310.0,3309.9,1.4102]
[1765337357596,3.01247357,3310.0,3309.9,1.4102]
[1765337357787,3.44077357,3310.0,3309.9,1.4102]
[1765337361000,2.73727357,3310.0,3309.9,1.4102]
[1765337361199,2.30897357,3310.0,3309.9,1.4102]
[1765337362199,3.01247357,3310.0,3309.9,1.4102]
[1765337362601,3.44077357,3310.0,3309.9,1.4102]
[1765337364301,1.4164,3309.9,3309.8,0.74663193]
[1765337364503,2.07521435,3309.9,3309.8,0.74663193]
[1765337367303,2.07521435,3309.9,3309.8,1.43113193]
[1765337369406,2.07521435,3309.9,3309.8,0.74663193]
[1765337371204,2.07521435,3309.9,3309.8,0.00453193]
[1765337374114,2.99607357,3309.9,3309.8,0.00453193]
[1765337374708,2.99607357,3309.9,3309.8,0.74663193]
[1765337374909,1.33991435,3309.9,3309.8,1.43113193]
[1765337375308,0.65881435,3309.9,3309.8,1.43113193]
[1765337375508,1.57335298,3310.1,3310.0,1.4266]
[1765337375705,2.30865298,3310.1,3310.0,1.4266]
[1765337376717,0.65881435,3310.1,3310.0,1.8492]
[1765337376915,0.91455467,3310.4,3310.3,1.4266]
[1765337377117,1.57336902,3310.4,3310.3,1.4266]
[1765337378815,2.30866902,3310.4,3310.3,1.4266]
[1765337379818,0.65881435,3310.4,3310.3,1.4266]
[1765337380018,2.30861942,3310.7,3310.6,0.7421]
[1765337384623,2.30848942,3310.7,3310.6,0.7421]
[1765337387320,2.30848942,3310.7,3310.6,1.4266]
[1765337388626,1.64967507,3310.7,3310.6,1.4266]
[1765337388825,2.30739676,3310.7,3310.6,1.4266]
[1765337390630,2.07412169,3310.7,3310.6,1.4266]
[1765337394733,2.07412169,3310.7,3310.6,0.7421]
[1765337395937,2.07412169,3310.7,3310.6,1.4594]
[1765337396534,2.07412169,3310.7,3310.6,0.7421]
[1765337397126,2.07412169,3310.7,3310.6,1.4594]
[1765337397629,2.07412169,3310.7,3310.6,0.7421]
[1765337398938,2.07412169,3310.7,3310.6,1.4594]
[1765337399535,2.07412169,3310.7,3310.6,0.7421]
[1765337400928,1.3982,3310.6,3310.5,3.9382]
[1765337401128,2.05592169,3310.6,3310.5,4.6555]
[1765337401437,2.05592169,3310.6,3310.5,3.9382]
[1765337401637,2.05592169,3310.6,3310.5,4.6555]
[1765337401836,2.05592169,3310.6,3310.5,3.2078]
[1765337402132,1.3982,3310.2,3310.1,3.2078]
[1765337402333,2.97678091,3310.2,3310.1,3.2078]
[1765337405444,1.3982,3309.9,3309.8,0.00453193]
[1765337405645,3.89764013,3309.9,3309.8,0.00453193]
[1765337405941,3.89764013,3309.9,3309.3,3.2078]
[1765337405942,1.3982,3309.4,3309.3,3.2078]
[1765337406140,2.97678091,3309.4,3309.3,3.2078]
[1765337406336,2.31905922,3309.4,3309.3,3.2078]
[1765337408040,2.31905922,3309.4,3309.3,3.9382]
[1765337408242,0.7108,3309.4,3309.3,4.6555]
[1765337408636,1.3928,3309.4,3309.3,4.6555]
[1765337409751,0.74263193,3309.7,3309.6,1.4212]
[1765337409945,0.00453193,3309.7,3309.6,1.4212]
[1765337413537,0.00453193,3309.7,3309.6,2.34205922]
[1765337413743,2.07337851,3310.3,3310.2,1.4212]
[1765337413945,1.4201,3310.3,3310.2,4.629]
[1765337414150,0.7381,3310.3,3310.2,4.629]
[1765337415452,2.07319315,3310.4,3310.3,1.4212]
[1765337416255,1.39119315,3310.4,3310.3,1.4212]
[1765337416655,2.28378157,3310.4,3310.3,1.4212]
[1765337417044,2.96578157,3310.4,3310.3,1.4212]
[1765337417249,2.28378157,3310.4,3310.3,1.4212]
[1765337419356,2.96578157,3310.4,3310.3,1.4212]
[1765337420454,2.28378157,3310.4,3310.3,1.4212]
[1765337420660,2.96578157,3310.4,3310.3,1.4212]
[1765337423452,0.65309315,3310.4,3310.3,1.4212]
[1765337423653,0.65309315,3310.5,3310.4,1.436]
[1765337423853,0.00453193,3310.6,3310.5,1.436]
[1765337424054,1.46753193,3310.6,3310.5,1.436]
[1765337424254,3.0132135,3310.6,3310.5,1.436]
[1765337425150,2.36012035,3310.6,3310.5,1.436]
[1765337432377,0.00453193,3310.6,3310.5,1.436]
[1765337432578,0.00453193,3310.6,3310.5,1.8442]
[1765337434571,1.46753193,3310.6,3310.5,1.436]
[1765337434769,0.72973193,3310.6,3310.5,1.436]
[1765337434971,0.00453193,3310.6,3310.5,1.436]
[1765337435270,0.00453193,3310.6,3310.5,1.8442]
[1765337442977,1.46753193,3310.6,3310.5,0.6938]
[1765337443279,1.46753193,3310.6,3310.2,4.6438]
[1765337443280,0.7252,3310.3,3310.2,4.6438]
[1765337443474,0.4412,3310.5,3310.2,4.6438]
[1765337443678,1.1664,3310.5,3310.4,1.436]
[1765337443875,0.7252,3310.5,3310.4,1.436]
[1765337444081,0.89712035,3310.6,3310.2,3.2078]
[1765337444082,1.62232035,3310.6,3310.5,1.436]
[1765337444582,0.72973193,3310.6,3310.5,1.436]
[1765337444780,0.00453193,3310.6,3310.5,2.73678842]
[1765337445575,0.00453193,3310.6,3310.5,1.8442]
[1765337445775,0.72973193,3310.6,3310.5,1.436]
[1765337446081,1.46753193,3310.6,3310.5,1.436]
[1765337447185,1.46753193,3310.6,3310.5,0.6938]
[1765337447684,1.46753193,3310.6,3310.5,1.436]
[1765337448681,0.72973193,3310.6,3310.5,1.436]
[1765337449485,1.46753193,3310.6,3310.5,1.436]
[1765337449683,0.72973193,3310.6,3310.5,1.436]
[1765337450390,1.46753193,3310.6,3310.5,1.436]
[1765337452483,2.12220659,3310.6,3310.5,1.436]
[1765337452884,1.46753193,3310.6,3310.5,1.436]
[1765337453191,0.65931648,3310.6,3310.5,1.436]
[1765337453986,0.00453193,3310.6,3310.5,2.73788842]
[1765337456786,0.00453193,3310.6,3310.5,1.8453]
[1765337458394,0.74283193,3310.6,3310.5,1.436]
[1765337458587,1.39761648,3310.6,3310.5,1.436]
[1765337458986,0.65931648,3310.6,3310.5,1.436]
[1765337459287,0.65931648,3310.6,3310.5,1.8453]
[1765337460694,0.00453193,3310.6,3310.5,1.8453]
[1765337461283,0.65951652,3310.6,3310.5,1.8453]
[1765337461488,2.31202035,3310.6,3310.5,1.436]
[1765337461688,2.29040494,3310.6,3310.5,1.436]
[1765337461985,1.55210494,3310.6,3310.5,1.436]
[1765337462183,2.29040494,3310.6,3310.5,1.436]
[1765337465690,2.96700494,3310.6,3310.5,1.436]
[1765337465891,1.55210494,3310.6,3310.5,1.436]
[1765337466091,2.29040494,3310.6,3310.5,1.436]
[1765337466293,2.96700494,3310.6,3310.5,1.436]
[1765337466799,2.29040494,3310.6,3310.5,1.436]
[1765337468201,2.96700494,3310.6,3310.5,1.436]
[1765337468693,2.96700494,3310.6,3310.2,4.83739128]
[1765337468901,2.29448842,3310.3,3310.2,3.936]
[1765337469096,1.4019,3310.3,3310.2,4.651]
[1765337472400,2.71288842,3310.5,3310.4,1.4432]
[1765337472593,2.47578891,3310.5,3310.4,1.4432]
[1765337472898,0.65548891,3310.5,3310.4,1.4432]
[1765337473100,0.66002084,3310.6,3310.5,1.8525]
[1765337473699,0.00453193,3310.6,3310.5,1.8525]
[1765337475296,0.00453193,3310.6,3310.5,2.00352]
[1765337476101,0.00453193,3310.6,3310.5,3.62291271]
[1765337476297,0.00453193,3310.6,3310.5,2.00352]
[1765337477492,0.00453193,3310.6,3310.5,3.62291271]
[1765337479498,0.00453193,3310.6,3310.5,2.00352]
[1765337481105,0.00453193,3310.6,3310.5,3.62291271]
[1765337481700,0.90767992,3311.4,3311.3,1.4432]
[1765337481907,1.56280899,3311.4,3311.3,1.4432]
[1765337482108,2.0603777,3311.4,3311.3,1.4432]
[1765337485009,1.3288777,3311.4,3311.3,1.4432]
[1765337488613,2.0045777,3311.4,3311.3,1.4432]
[1765337489417,2.0045777,3311.4,3311.3,0.7282]
[1765337490313,2.0045777,3311.4,3311.3,1.4292]
[1765337491915,2.0045777,3311.4,3311.3,0.7282]
[1765337494020,2.0045777,3311.4,3311.3,1.4292]
[1765337494519,2.0045777,3311.4,3311.3,0.7282]
[1765337496010,2.0045777,3311.4,3311.3,1.4292]
[1765337496521,2.0045777,3311.4,3311.3,0.7282]
[1765337499315,2.0045777,3311.4,3311.3,1.4292]
[1765337499620,2.0045777,3311.4,3311.3,0.7282]
[1765337500524,2.0045777,3311.4,3311.3,1.4292]
[1765337503123,2.0045777,3311.4,3311.2,3.2078]
[1765337503428,2.04992907,3311.3,3311.2,3.9323]
[1765337504122,2.04992907,3311.3,3311.2,4.6333]
[1765337504628,0.65512907,3311.3,3311.2,4.6333]
[1765337504828,0.00334863,3311.4,3311.3,1.4255]
[1765337505320,0.72244863,3311.4,3311.3,1.4255]
[1765337505526,1.3775777,3311.4,3311.3,1.4255]
[1765337507826,2.0532777,3311.4,3311.3,1.4255]
[1765337508031,2.0532777,3311.4,3311.3,0.7245]
[1765337511536,2.0532777,3311.4,3311.3,1.4255]
[1765337513739,1.3775777,3311.4,3311.3,1.4255]
[1765337514842,2.0527777,3311.4,3311.3,1.4255]
[1765337515938,1.3775777,3311.4,3311.3,1.4255]
[1765337516135,2.0527777,3311.4,3311.3,1.4255]
[1765337517539,1.3775777,3311.4,3311.3,1.4255]
[1765337518534,0.6584777,3311.4,3311.3,1.4255]
[1765337518740,0.00334863,3311.4,3311.3,1.4255]
[1765337518940,0.00334863,3311.4,3311.3,1.57648]
[1765337519135,0.00334863,3311.4,3311.3,3.19534336]
[1765337519336,0.00453193,3311.7,3311.6,1.429]
[1765337519537,0.00453193,3311.7,3311.6,5.55703275]
[1765337520136,0.00453193,3311.7,3311.6,4.6368]
[1765337520436,0.00780536,3311.7,3311.6,4.64003385]
[1765337521035,0.00780536,3311.7,3311.6,4.79100385]
[1765337521241,0.00780536,3311.7,3311.6,6.40998389]
[1765337521642,3.2078,3312.8,3311.6,6.40998389]
[1765337521643,2.01951903,3312.6,3312.5,1.429]
[1765337521844,2.01951903,3312.6,3312.5,4.6368]
[1765337522543,2.02246711,3312.6,3312.5,4.6368]
[1765337523139,1.36844808,3312.6,3312.5,3.2078]
[1765337523334,2.28868083,3312.6,3312.5,3.2078]
[1765337523745,0.562,3311.7,3311.6,3.04898181]
[1765337523942,1.124,3311.7,3311.6,3.21103385]
[1765337525941,1.124,3311.7,3311.6,0.00323385]
[1765337526143,1.77581168,3311.7,3311.6,0.00323385]
[1765337530355,1.13,3311.2,3311.1,3.2078]
[1765337530559,1.13,3311.1,3311.0,0.00453193]
[1765337531249,1.13,3310.6,3310.5,0.4093]
[1765337531452,1.13,3310.6,3310.2,3.2078]
[1765337531453,1.13,3310.3,3310.2,3.918]
[1765337531754,2.05023275,3310.3,3310.2,4.6571593]
[1765337531954,0.565,3310.3,3310.2,4.6571593]
[1765337532157,0.00453193,3310.6,3310.5,1.8726]
[1765337532354,0.56953193,3310.6,3310.5,1.8726]
[1765337532848,1.13453193,3310.6,3310.5,1.8726]
[1765337533053,1.13453193,3310.6,3310.5,0.4267]
[1765337533447,2.05476468,3310.6,3310.5,0.4267]
[1765337535350,2.05476468,3310.6,3310.5,1.8726]
[1765337536151,2.05476468,3310.6,3310.5,1.1369]
[1765337536356,2.05476468,3310.6,3310.5,0.4267]
[1765337538652,2.02720798,3310.6,3310.5,0.4267]
[1765337543356,1.13453193,3310.6,3310.5,0.4267]
[1765337543554,1.13453193,3310.6,3310.5,1.1369]
[1765337543758,2.02720798,3310.6,3310.5,1.1369]
[1765337544061,1.1256,3310.3,3310.2,3.9024593]
[1765337544258,2.01827605,3310.3,3310.2,3.9024593]
[1765337544460,2.01827605,3310.3,3310.2,4.5727593]
[1765337549171,1.45547605,3310.3,3310.2,4.5727593]
[1765337549364,0.89267605,3310.3,3310.2,4.5727593]
[1765337549871,1.45547605,3310.5,3310.4,1.3615]
[1765337557175,0.00453193,3310.6,3310.5,1.8021]
[1765337557376,0.00453193,3310.6,3310.5,2.69477605]
[1765337557577,0.89267605,3311.0,3310.9,1.3615]
[1765337557970,2.02727605,3311.0,3310.9,1.3615]
[1765337559178,2.68008348,3311.0,3310.9,1.3615]
[1765337560578,2.68008348,3311.0,3310.9,0.6912]
[1765337561077,2.68008348,3311.0,3310.9,1.3615]
[1765337561272,2.11278348,3311.0,3310.9,1.3615]
[1765337561981,1.54548348,3311.0,3310.9,1.3615]
[1765337562172,0.65280743,3311.0,3310.9,1.3615]
[1765337562379,1.45997605,3311.2,3311.1,1.3615]
[1765337562774,2.1129135,3311.2,3311.1,1.3615]
[1765337562969,1.1346,3311.1,3311.0,0.4406]
[1765337563172,1.78753745,3311.1,3311.0,0.4406]
[1765337568787,1.1346,3310.7,3310.6,3.2078]
[1765337569089,2.02727605,3310.7,3310.6,3.2078]
[1765337569384,2.02727605,3310.7,3310.6,3.899]
[1765337569890,2.02727605,3310.7,3310.6,4.5693]
[1765337570491,2.02727605,3310.7,3310.6,3.899]
[1765337571988,2.02727605,3310.7,3310.6,0.6912]
[1765337572287,2.02727605,3310.7,3310.6,1.3615]
[1765337572682,1.1346,3310.6,3310.5,3.6484]
[1765337573390,1.1346,3310.6,3310.5,4.3396]
[1765337576984,1.1346,3310.3,3310.2,0.0034593]
[1765337577180,1.1346,3310.0,3309.9,0.00453193]
[1765337577380,2.02727605,3310.0,3309.9,0.00453193]
[1765337577582,1.78745716,3310.0,3309.9,0.00453193]
[1765337577781,2.68013321,3310.0,3309.9,0.70243193]
[1765337578387,2.68233917,3310.0,3309.9,0.70617712]
[1765337579687,2.68233917,3310.0,3309.9,0.00827712]
[1765337582387,0.00220596,3310.0,3309.9,1.38027712]
[1765337582893,0.89488201,3310.0,3309.9,1.38027712]
[1765337583197,1.46218201,3310.0,3309.9,1.38027712]
[1765337583389,2.02948201,3310.0,3309.9,0.00827712]
[1765337583585,2.02948201,3310.0,3309.9,1.38027712]
[1765337583788,2.02948201,3310.0,3309.9,0.00827712]
[1765337584096,2.02948201,3310.0,3309.9,0.00374519]
[1765337584290,1.1346,3309.2,3309.1,4.5798]
[1765337584489,1.45997605,3309.2,3309.1,4.5798]
[1765337584695,0.89267605,3309.2,3309.1,4.5798]
[1765337585305,0.89267605,3309.2,3309.1,4.58350693]
[1765337586896,1.45997605,3309.2,3309.1,4.58350693]
[1765337588100,2.02987605,3309.2,3309.1,3.90940693]
[1765337588398,1.1398,3308.9,3308.8,0.00453193]
[1765337588586,0.6884,3308.3,3308.2,3.2078]
[1765337588790,2.25247605,3308.3,3308.2,3.2078]
[1765337588988,1.58107605,3308.3,3308.2,4.6251]
[1765337589393,2.25247605,3308.3,3308.2,4.62854243]
[1765337589698,2.25247605,3308.3,3308.2,3.21124243]
[1765337589898,2.25247605,3308.3,3308.2,4.62854243]
[1765337590598,0.89267605,3308.3,3308.2,4.62854243]
[1765337590799,0.89267605,3308.5,3308.4,1.4173]
[1765337592498,2.25247605,3308.5,3308.4,1.4173]
[1765337593900,1.58107605,3308.5,3308.4,1.4173]
[1765337594198,2.25247605,3308.5,3308.4,0.6901]
[1765337594401,1.3598,3308.3,3308.2,3.90134243]
[1765337594596,2.25247605,3308.3,3308.2,3.90134243]
[1765337595396,2.25247605,3308.3,3308.2,3.21124243]
[1765337596390,2.25247605,3308.3,3308.2,0.00344243]
[1765337598705,2.28165406,3308.3,3308.2,0.00344243]
[1765337600004,1.3598,3308.0,3307.9,0.00453193]
[1765337600201,5.48945406,3308.0,3307.9,0.00453193]
[1765337601105,5.48945406,3308.0,3307.9,0.00750168]
[1765337602205,3.8962,3308.0,3307.9,1.42480168]
[1765337602402,3.2078,3308.0,3307.9,1.42480168]
[1765337602705,4.5676,3308.0,3307.9,0.69760168]
[1765337602906,4.5676,3308.0,3307.9,1.42480168]
[1765337603604,3.8962,3308.0,3307.9,1.42480168]
[1765337604003,3.2078,3308.0,3307.9,1.42480168]
[1765337604213,3.8959,3308.6,3308.5,1.8575]
[1765337604606,4.584,3308.6,3308.5,1.8575]
[1765337605111,0.6881,3308.6,3308.5,1.8575]
[1765337605498,1.3762,3308.6,3308.5,1.8575]
[1765337606303,1.3762,3308.6,3308.5,0.4247]
[1765337606515,1.3762,3308.3,3308.2,3.9408]